bitfinex/quotes_ETHUSD_20251021
["timestamp","ask_amount","ask_price","bid_price","bid_amount"]
[1761016905623,1e-08,3942.3,3942.2,6.73919812]
[1761016906845,1e-08,3942.3,3942.2,7.17829812]
[1761016910053,1e-08,3942.3,3942.2,8.90629812]
[1761016912962,1e-08,3942.3,3942.2,15.25589812]
[1761016914168,1e-08,3942.3,3942.2,12.57989812]
[1761016916061,1e-08,3942.3,3942.2,15.25589812]
[1761016918673,1e-08,3942.3,3942.2,12.14079812]
[1761016918879,1e-08,3942.3,3942.2,12.57989812]
[1761016920193,1e-08,3942.3,3942.2,12.14079812]
[1761016920362,1e-08,3942.3,3942.2,12.57989812]
[1761016920760,1e-08,3942.3,3942.2,12.59309812]
[1761016922598,1e-08,3942.3,3942.2,8.79309812]
[1761016922995,1e-08,3942.3,3942.2,8.91949812]
[1761016924502,1e-08,3942.3,3942.2,8.46719812]
[1761016925375,1e-08,3942.3,3942.2,8.91949812]
[1761016925765,1e-08,3942.3,3942.2,8.46719812]
[1761016926002,1e-08,3942.3,3942.2,8.91949812]
[1761016926426,1e-08,3942.3,3942.2,9.02116714]
[1761016926630,1e-08,3942.3,3942.2,11.69716714]
[1761016926937,1e-08,3942.3,3942.2,29.10509589]
[1761016928324,0.001,3943.1,3943.0,3.04301999]
[1761016928325,1e-08,3943.1,3943.0,3.04301999]
[1761016928494,1e-08,3943.1,3943.0,8.29532199]
[1761016928699,1e-08,3943.1,3943.0,8.74762199]
[1761016929422,1e-08,3943.1,3943.0,8.84927292]
[1761016930932,1e-08,3943.1,3943.0,11.52527292]
[1761016931427,1e-08,3943.1,3943.0,11.77947292]
[1761016932798,1e-08,3943.1,3943.0,11.52527292]
[1761016935264,1e-08,3944.2,3944.1,3.26411267]
[1761016935458,1e-08,3944.2,3944.1,6.81052394]
[1761016935664,1e-08,3944.2,3944.1,8.99082394]
[1761016936163,1e-08,3944.2,3944.1,9.09244492]
[1761016938164,1e-08,3944.2,3944.1,11.76844492]
[1761016938330,1e-08,3944.2,3944.1,11.89484492]
[1761016940369,0.001,3944.5,3944.1,18.66568892]
[1761016940529,0.001,3944.5,3944.4,7.44611983]
[1761016940730,0.001,3944.5,3944.4,11.04571983]
[1761016940933,0.001,3944.5,3944.4,11.52061983]
[1761016941353,0.001,3944.6,3944.5,7.44605556]
[1761016941559,0.001,3944.6,3944.5,7.92095556]
[1761016941745,0.001,3944.6,3944.5,9.6043779]
[1761016942546,0.1261,3946.6,3946.4,0.50688]
[1761016942741,0.2197,3946.7,3946.6,3.04070658]
[1761016943043,0.3468,3946.7,3946.6,3.04070658]
[1761016943243,0.3468,3946.7,3946.6,3.26040658]
[1761016943449,0.2197,3946.7,3946.6,4.41503824]
[1761016943643,0.1271,3947.0,3946.9,3.04051399]
[1761016943847,0.1271,3947.0,3946.9,6.25851399]
[1761016944942,0.1271,3947.0,3946.9,5.75163399]
[1761016945167,0.1271,3947.0,3946.9,2.53363399]
[1761016945360,0.1271,3947.0,3946.9,5.77697032]
[1761016945562,0.1271,3947.0,3946.9,5.75163399]
[1761016947441,0.1271,3947.0,3946.9,3.218]
[1761016947649,0.1271,3947.0,3946.9,5.75163399]
[1761016950171,0.1271,3947.0,3946.1,0.72298]
[1761016950374,0.1271,3947.0,3946.3,0.50688]
[1761016950565,0.2188,3946.9,3946.8,2.53368828]
[1761016950876,0.2188,3946.9,3946.8,5.74968828]
[1761016951055,0.3468,3946.9,3946.8,5.74968828]
[1761016951775,0.3468,3946.9,3946.8,3.216]
[1761016952075,0.3468,3946.9,3946.4,2.53391143]
[1761016952279,0.128,3946.8,3946.6,2.53377471]
[1761016952571,0.128,3946.8,3946.7,2.53376238]
[1761016952942,0.128,3946.8,3945.7,0.50688]
[1761016953138,0.2143,3945.8,3944.5,4.2185618]
[1761016953343,0.2143,3945.8,3945.7,0.1264]
[1761016953546,0.2143,3945.8,3945.7,3.3434]
[1761016953846,0.3432,3945.8,3945.7,3.3434]
[1761016954074,0.3432,3945.8,3945.7,5.75140454]
[1761016954756,0.3432,3945.8,3945.7,5.87780454]
[1761016957088,0.3432,3945.8,3945.7,3.3434]
[1761016957276,0.3432,3945.8,3945.7,5.87780454]
[1761016957909,0.3432,3945.8,3945.7,3.3434]
[1761016958108,0.3432,3945.8,3945.7,5.87780454]
[1761016959710,0.3432,3945.8,3944.7,0.3432]
[1761016959883,0.3432,3945.8,3944.6,0.002]
[1761016959884,0.3407,3945.7,3945.3,2.66105987]
[1761016960107,0.3407,3945.7,3945.4,3.217]
[1761016961916,0.3407,3945.7,3945.5,2.53453301]
[1761016962147,0.3407,3945.7,3945.6,2.53446877]
[1761016962517,0.3407,3945.7,3945.5,2.53452482]
[1761016963235,0.3407,3945.7,3945.6,2.53446877]
[1761016963602,0.3407,3945.7,3945.6,2.55981345]
[1761016964045,0.3407,3945.7,3945.4,3.217]
[1761016964229,0.3407,3945.7,3945.5,2.53452064]
[1761016964424,0.3407,3945.7,3945.4,5.75158203]
[1761016964626,0.3407,3945.7,3945.4,3.217]
[1761016965034,0.3407,3945.7,3945.5,2.53452675]
[1761016965209,0.3407,3945.7,3945.6,2.53446877]
[1761016967637,0.3407,3945.7,3945.5,2.53451259]
[1761016968143,0.3407,3945.7,3945.4,3.217]
[1761016968305,0.3407,3945.7,3945.4,5.75154032]
[1761016968510,0.3407,3945.7,3945.5,2.53450159]
[1761016969207,0.3407,3945.7,3945.4,5.75158958]
[1761016969534,0.3407,3945.7,3945.6,2.53446877]
[1761016969728,0.3407,3945.7,3945.5,2.5345139]
[1761016969933,0.3407,3945.7,3945.4,5.75154045]
[1761016971267,0.3407,3945.7,3945.5,2.53452862]
[1761016971949,0.3407,3945.7,3945.5,2.53453301]
[1761016972139,0.3407,3945.7,3945.6,2.53446877]
[1761016974451,0.3407,3945.7,3945.5,2.53452445]
[1761016975153,0.3407,3945.7,3945.4,5.75157642]
[1761016975335,0.3407,3945.7,3945.5,2.53452563]
[1761016975541,0.3407,3945.7,3945.4,5.75157307]
[1761016977626,0.3407,3945.7,3945.6,2.53446877]
[1761016978258,0.3417,3945.7,3945.5,2.5345099]
[1761016978428,0.3417,3945.7,3945.6,2.53446877]
[1761016978787,0.3417,3945.7,3945.5,2.53449746]
[1761016980780,0.3417,3945.7,3945.4,5.7515746]
[1761016980936,0.3417,3945.7,3945.3,0.1264]
[1761016981136,0.3417,3945.7,3944.6,0.1284]
[1761016981137,0.1264,3945.3,3944.6,0.1284]
[1761016981340,0.1264,3944.8,3944.6,0.002]
[1761016981867,0.3407,3944.7,3944.6,0.002]
[1761016982737,0.64089554,3944.7,3944.6,0.002]
[1761016982944,0.3407,3944.7,3944.6,0.002]
[1761016984444,4.60374702,3944.7,3944.6,0.002]
[1761016984880,2.0687,3944.7,3944.6,0.002]
[1761016991482,4.60374702,3944.7,3944.6,0.002]
[1761016991679,8.38074702,3944.7,3944.6,0.002]
[1761016991842,9.09753546,3944.7,3944.6,0.002]
[1761016992194,5.79955359,3944.7,3944.6,0.002]
[1761016993047,5.8437409,3944.7,3944.6,0.002]
[1761016995382,5.8447409,3944.7,3944.6,0.002]
[1761016997608,1.729,3944.7,3944.6,0.002]
[1761016998782,0.001,3944.7,3944.6,0.002]
[1761016999290,0.1121,3944.7,3944.6,0.002]
[1761017000703,0.15628451,3944.7,3944.6,0.002]
[1761017001210,0.04518451,3944.7,3944.6,0.002]
[1761017002006,0.17488451,3944.7,3944.6,0.002]
[1761017002201,0.47982241,3944.7,3944.6,0.002]
[1761017002406,0.04518451,3944.7,3944.6,0.002]
[1761017007145,0.001,3944.7,3944.6,2.53711129]
[1761017007343,0.001,3944.7,3944.6,3.214]
[1761017007843,0.1298,3944.7,3944.6,0.002]
[1761017008242,0.001,3944.7,3944.6,0.002]
[1761017010013,0.001,3944.7,3944.6,2.53711129]
[1761017010213,0.001,3944.7,3944.6,3.54092242]
[1761017013046,0.001,3944.7,3944.6,0.57711113]
[1761017013549,0.001,3944.7,3944.6,3.11222242]
[1761017013855,0.001,3944.7,3944.6,3.54482242]
[1761017014849,0.001,3944.7,3944.6,0.57711113]
[1761017015020,0.001,3944.7,3944.6,3.11222242]
[1761017015224,0.001,3944.7,3944.6,3.54482242]
[1761017017326,0.001,3944.7,3944.6,1.00971113]
[1761017018045,0.001,3944.7,3944.6,0.57711113]
[1761017018220,0.001,3944.7,3944.6,3.11222242]
[1761017018425,0.001,3944.7,3944.6,3.54482242]
[1761017021255,0.001,3944.7,3944.6,0.57711113]
[1761017021458,0.001,3944.7,3944.6,2.53711129]
[1761017021756,0.001,3944.7,3944.6,2.96971129]
[1761017022126,0.001,3944.7,3944.6,9.16478668]
[1761017022526,0.001,3944.7,3944.6,10.89278668]
[1761017022726,0.001,3945.1,3945.0,3.04173424]
[1761017023028,0.001,3945.1,3945.0,8.00908278]
[1761017023242,0.001,3945.1,3945.0,8.54273424]
[1761017023428,0.001,3945.1,3945.0,8.64432941]
[1761017024341,0.001,3945.1,3945.0,8.54273424]
[1761017024557,0.001,3945.1,3945.0,9.65050133]
[1761017024774,0.001,3945.1,3945.0,9.7520965]
[1761017025126,0.001,3945.1,3945.0,15.31389189]
[1761017026479,1e-08,3945.7,3945.6,10.56264416]
[1761017026689,1e-08,3946.2,3946.1,4.76902763]
[1761017026867,1e-08,3946.2,3946.1,13.92806449]
[1761017027169,1e-08,3946.2,3946.1,14.33532302]
[1761017027569,1e-08,3946.2,3946.1,8.77352763]
[1761017028357,1e-08,3946.2,3946.1,5.55952763]
[1761017028585,1e-08,3946.2,3946.1,7.85490362]
[1761017028790,1e-08,3946.2,3946.1,3.46992362]
[1761017028988,1e-08,3946.2,3946.1,5.87454763]
[1761017029392,1e-08,3946.2,3946.1,5.74814763]
[1761017031474,1e-08,3946.2,3946.1,6.18074763]
[1761017031796,1e-08,3946.2,3946.1,6.41224763]
[1761017032970,1e-08,3946.2,3946.1,5.74814763]
[1761017033171,1e-08,3946.2,3946.1,6.57638562]
[1761017033890,1e-08,3946.2,3946.1,3.36238562]
[1761017034201,1e-08,3946.2,3946.1,5.74814763]
[1761017037768,1e-08,3946.2,3945.3,1.728]
[1761017037999,0.11290001,3946.2,3946.1,2.53414763]
[1761017038199,0.11290001,3946.2,3946.1,5.74714763]
[1761017038600,1e-08,3946.2,3946.1,5.74714763]
[1761017039205,0.11290001,3946.2,3946.1,5.74714763]
[1761017040209,1e-08,3946.2,3946.1,5.74714763]
[1761017041309,1e-08,3946.2,3946.1,6.58792768]
[1761017041510,1e-08,3946.2,3946.1,7.27932768]
[1761017041810,1e-08,3946.2,3946.1,6.58792768]
[1761017041974,1e-08,3946.2,3946.1,5.74714763]
[1761017042181,1e-08,3946.2,3946.1,6.56494763]
[1761017042478,1e-08,3946.2,3946.1,6.94542763]
[1761017042790,1e-08,3946.2,3946.1,7.07182763]
[1761017042998,1e-08,3946.2,3946.1,8.58861522]
[1761017045315,1e-08,3946.2,3946.1,10.31661522]
[1761017047790,1e-08,3946.2,3946.1,10.31861522]
[1761017050400,1e-08,3946.2,3946.1,12.99461522]
[1761017050603,1e-08,3947.0,3946.9,3.04051399]
[1761017050835,1e-08,3947.0,3946.9,12.84233223]
[1761017051420,1e-08,3947.0,3946.9,13.17273223]
[1761017051734,1e-08,3947.0,3946.9,14.90073223]
[1761017053212,1e-08,3947.0,3946.9,17.57673223]
[1761017053414,1e-08,3947.0,3946.9,14.90073223]
[1761017057444,1e-08,3947.0,3946.9,11.68973223]
[1761017057636,1e-08,3947.0,3946.9,14.89973223]
[1761017057808,1e-08,3947.0,3946.9,17.57573223]
[1761017058435,1e-08,3947.0,3946.9,14.89973223]
[1761017058742,1e-08,3947.0,3946.9,14.89263223]
[1761017060549,1e-08,3947.0,3946.9,15.01903223]
[1761017062824,1e-08,3947.0,3946.9,15.27323223]
[1761017063347,1e-08,3947.0,3946.9,17.94923223]
[1761017063851,1e-08,3947.0,3946.9,21.74923223]
[1761017065256,1e-08,3947.0,3946.9,21.75123223]
[1761017069465,1e-08,3947.0,3946.9,21.75023223]
[1761017070842,1e-08,3947.0,3946.9,20.81383663]
[1761017072127,1e-08,3947.0,3946.9,15.72393684]
[1761017072322,1e-08,3947.0,3946.9,20.34933663]
[1761017073139,1e-08,3947.0,3946.9,20.78543663]
[1761017073539,1e-08,3947.0,3946.9,20.34933663]
[1761017074056,1e-08,3947.0,3946.9,13.04793684]
[1761017074753,1e-08,3947.0,3946.9,8.99273684]
[1761017078173,1e-08,3947.0,3946.9,9.42883684]
[1761017078380,1e-08,3947.0,3946.9,8.99273684]
[1761017086308,0.11390001,3947.0,3946.9,6.70631399]
[1761017088397,0.11390001,3947.0,3946.9,11.33171378]
[1761017090121,1e-08,3947.0,3946.9,11.33171378]
[1761017094818,1e-08,3947.0,3946.9,11.76781378]
[1761017095013,1e-08,3947.0,3946.9,13.19796661]
[1761017095921,1e-08,3947.0,3946.9,12.76186661]
[1761017098800,1e-08,3947.0,3946.9,8.57256682]
[1761017099002,1e-08,3947.0,3946.9,8.13646682]
[1761017100302,1e-08,3947.0,3946.9,8.57256682]
[1761017100908,1e-08,3947.0,3946.9,12.97056682]
[1761017103228,1e-08,3947.0,3946.9,13.22476682]
[1761017103813,1e-08,3947.0,3946.9,17.02476682]
[1761017105136,0.001,3947.4,3947.3,3.04025724]
[1761017105334,0.001,3947.4,3947.3,15.82450452]
[1761017105523,0.001,3947.4,3947.3,16.37357075]
[1761017105939,0.001,3947.4,3947.3,16.49657075]
[1761017109948,0.001,3947.4,3947.3,20.29657075]
[1761017116318,0.001,3947.4,3947.3,19.84857075]
[1761017117120,0.001,3947.8,3947.7,4.76800055]
[1761017117435,0.001,3947.8,3947.7,13.72392035]
[1761017117945,0.001,3947.8,3947.7,13.94352035]
[1761017121023,0.001,3947.8,3947.7,19.03652014]
[1761017121348,0.1001,3949.1,3948.9,3.03923078]
[1761017121517,0.1001,3949.1,3948.9,11.45312029]
[1761017121720,0.00956318,3949.4,3948.9,10.87063057]
[1761017121721,0.3136,3949.0,3948.9,10.87063057]
[1761017122126,0.00956318,3949.4,3949.3,2.53209429]
[1761017122326,0.00956318,3949.4,3949.3,6.24497429]
[1761017122753,0.10856318,3949.4,3949.3,6.24497429]
[1761017122919,0.10856318,3949.4,3949.3,6.84497429]
[1761017123615,0.10856318,3949.4,3949.3,8.24522919]
[1761017123817,0.00956318,3949.4,3949.3,8.24522919]
[1761017124051,0.10856318,3949.4,3949.3,8.24522919]
[1761017125050,0.00956318,3949.4,3949.3,8.24522919]
[1761017126473,0.00956318,3949.4,3949.3,8.71282919]
[1761017126678,1e-08,3949.4,3949.3,8.71282919]
[1761017127175,1e-08,3949.4,3949.3,13.11082919]
[1761017127677,1e-08,3949.4,3949.3,9.97322919]
[1761017128762,1e-08,3949.4,3949.3,6.76722919]
[1761017128952,1e-08,3949.4,3949.3,9.97322919]
[1761017129845,0.10030001,3949.4,3949.3,9.97322919]
[1761017130444,0.10030001,3949.4,3949.3,6.26034919]
[1761017130645,0.10030001,3949.4,3949.3,9.46634919]
[1761017130880,0.10030001,3949.4,3949.3,9.97322919]
[1761017131258,0.10030001,3949.4,3949.3,10.09962919]
[1761017133071,0.10030001,3949.4,3949.3,8.37162919]
[1761017134089,0.10030001,3949.4,3949.3,4.65874919]
[1761017134287,0.10030001,3949.4,3949.3,6.46349429]
[1761017134753,0.10030001,3949.4,3949.3,0.1264]
[1761017134959,0.10030001,3949.4,3949.3,3.3314]
[1761017135261,0.10130001,3949.4,3949.3,3.205]
[1761017139361,0.36462102,3949.4,3949.3,3.205]
[1761017140373,0.10130001,3949.4,3949.3,3.205]
[1761017151379,0.10130001,3949.4,3949.3,5.73709429]
[1761017151779,0.10130001,3949.4,3949.3,3.205]
[1761017152196,0.10130001,3949.4,3949.3,5.73709429]
[1761017152874,0.10130001,3949.4,3949.3,3.205]
[1761017153705,0.00100001,3949.4,3949.3,5.86349429]
[1761017153905,0.10130001,3949.4,3949.3,5.86349429]
[1761017154501,0.10130001,3949.4,3949.3,3.3314]
[1761017154816,0.10130001,3949.4,3949.3,3.3334]
[1761017156322,0.10130001,3949.4,3949.3,3.207]
[1761017159787,2.63333019,3949.4,3949.3,3.207]
[1761017160095,3.27625815,3949.4,3949.3,3.207]
[1761017160693,3.27625815,3949.4,3949.3,0.002]
[1761017161596,0.22770001,3949.4,3949.3,0.002]
[1761017162736,2.75973019,3949.4,3949.3,0.002]
[1761017163739,4.36133019,3949.4,3949.3,0.002]
[1761017164111,6.61244519,3949.4,3949.3,0.002]
[1761017164311,6.61687319,3949.4,3949.3,0.002]
[1761017164511,7.85666528,3949.4,3949.3,0.002]
[1761017164837,9.56519328,3949.4,3949.3,0.002]
[1761017165808,13.59841228,3949.4,3949.3,0.002]
[1761017166438,11.04901228,3949.4,3949.3,0.002]
[1761017166821,15.10486328,3949.4,3949.3,0.002]
[1761017167226,15.86651754,3949.4,3949.3,0.002]
[1761017167840,21.37543854,3949.4,3949.3,0.002]
[1761017168147,11.48259754,3949.4,3949.3,0.002]
[1761017168923,19.45750654,3949.4,3949.3,0.002]
[1761017170061,20.11571441,3949.4,3949.3,0.002]
[1761017170249,20.15984978,3949.4,3949.3,0.002]
[1761017170452,17.16263878,3949.4,3949.3,0.002]
[1761017170835,19.15001578,3949.4,3949.3,0.002]
[1761017171167,18.94075378,3949.4,3949.3,0.002]
[1761017171870,19.19015278,3949.4,3949.3,0.002]
[1761017172172,18.59865678,3949.4,3949.3,0.002]
[1761017173066,19.86024765,3949.0,3948.9,0.002]
[1761017173276,19.57919142,3949.0,3948.9,0.002]
[1761017173481,17.96125042,3949.0,3948.9,0.002]
[1761017173778,18.10695242,3949.0,3948.9,0.002]
[1761017173983,9.69831342,3949.0,3948.9,0.002]
[1761017174309,19.09820232,3949.0,3948.9,0.002]
[1761017175054,21.20226732,3949.0,3948.9,0.002]
[1761017175690,16.91356419,3949.0,3948.9,0.002]
[1761017176066,17.85170419,3949.0,3948.9,0.002]
[1761017176261,17.46163019,3949.0,3948.9,0.002]
[1761017176497,17.85887436,3949.0,3948.9,0.002]
[1761017177106,19.68479236,3949.0,3948.9,0.002]
[1761017177867,16.68990349,3949.0,3948.9,0.002]
[1761017178075,19.05484649,3949.0,3948.9,0.002]
[1761017179094,17.33115649,3949.0,3948.9,0.002]
[1761017179987,17.92244749,3949.0,3948.9,0.002]
[1761017180197,15.53919632,3949.0,3948.9,0.002]
[1761017181207,18.48569232,3949.0,3948.9,0.002]
[1761017182211,23.24842832,3949.0,3948.9,0.002]
[1761017182413,23.64565603,3949.0,3948.9,0.002]
[1761017182980,23.43021603,3949.0,3948.9,0.002]
[1761017183921,21.49542403,3949.0,3948.9,0.002]
[1761017184118,10.22376103,3949.0,3948.9,0.002]
[1761017184319,17.18375303,3949.0,3948.9,0.002]
[1761017185221,22.06145603,3949.0,3948.9,0.002]
[1761017185942,22.8770589,3949.0,3948.9,0.002]
[1761017186116,11.0393639,3949.0,3948.9,0.002]
[1761017186321,2.53276559,3948.3,3947.8,0.002]
[1761017186640,10.78592022,3947.9,3947.8,0.002]
[1761017186849,13.99192022,3947.9,3947.8,0.002]
[1761017187010,14.09112022,3947.9,3947.8,0.002]
[1761017187211,15.55442422,3947.9,3947.8,0.002]
[1761017187525,17.41665532,3947.9,3947.8,0.002]
[1761017187824,17.51824378,3947.9,3947.8,0.002]
[1761017188030,17.82696665,3947.9,3947.8,0.002]
[1761017188236,24.63769365,3947.9,3947.8,0.002]
[1761017189240,24.71856165,3947.9,3947.8,0.002]
[1761017190052,24.76271766,3947.9,3947.8,0.002]
[1761017190251,24.95313666,3947.9,3947.8,0.002]
[1761017190550,16.20240389,3947.5,3947.4,0.002]
[1761017190784,19.16192083,3947.5,3947.4,0.002]
[1761017190937,19.26112083,3947.5,3947.4,0.002]
[1761017191327,19.3627209,3947.5,3947.4,0.002]
[1761017191823,9.1223659,3947.5,3947.4,0.002]
[1761017192045,11.2666429,3947.5,3947.4,0.002]
[1761017192448,11.3658429,3947.5,3947.4,0.002]
[1761017193837,22.3046919,3947.5,3947.4,0.002]
[1761017194035,21.0896919,3947.5,3947.4,0.002]
[1761017194232,20.4988209,3947.5,3947.4,0.002]
[1761017195055,16.36649137,3947.5,3947.4,0.002]
[1761017195823,17.05216337,3947.5,3947.4,0.002]
[1761017196358,17.36088624,3947.5,3947.4,0.002]
[1761017196881,25.76866124,3947.5,3947.4,0.002]
[1761017197059,25.51217924,3947.5,3947.4,0.002]
[1761017197551,20.58597324,3947.5,3947.4,0.002]
[1761017198340,20.54181577,3947.5,3947.4,0.002]
[1761017198753,20.58597412,3947.5,3947.4,0.002]
[1761017198960,20.79463177,3947.5,3947.4,0.002]
[1761017200059,24.47284277,3947.5,3947.4,0.002]
[1761017201049,24.63161677,3947.5,3947.4,0.002]
[1761017201578,24.67577535,3947.5,3947.4,0.002]
[1761017201960,24.73793135,3947.5,3947.4,0.002]
[1761017203084,24.85270635,3947.5,3947.4,0.002]
[1761017204404,19.42385635,3947.5,3947.4,0.002]
[1761017205075,21.43000935,3947.5,3947.4,0.002]
[1761017205384,18.21597435,3947.5,3947.4,0.002]
[1761017206084,20.49542535,3947.5,3947.4,0.002]
[1761017206254,20.19118935,3947.5,3947.4,0.002]
[1761017207152,20.74805935,3947.5,3947.4,0.002]
[1761017207382,21.08229794,3947.5,3947.4,0.002]
[1761017208083,18.72279894,3947.5,3947.4,0.002]
[1761017208259,19.30202994,3947.5,3947.4,0.002]
[1761017209290,19.41955794,3947.5,3947.4,0.002]
[1761017209588,18.97932194,3947.5,3947.4,0.002]
[1761017210290,20.41069094,3947.5,3947.4,0.002]
[1761017210989,7.43952448,3947.5,3947.4,0.4401]
[1761017211185,11.99508348,3947.5,3947.4,0.4401]
[1761017211788,11.99508348,3947.5,3947.4,0.002]
[1761017212161,17.54068348,3947.5,3947.4,0.002]
[1761017212857,15.96043948,3947.5,3947.4,0.002]
[1761017213183,9.16752448,3947.5,3947.4,0.002]
[1761017213391,15.93506248,3947.5,3947.4,0.002]
[1761017213690,16.03406248,3947.5,3947.4,0.002]
[1761017214090,15.93506248,3947.5,3947.4,0.002]
[1761017214281,19.54998448,3947.5,3947.4,0.002]
[1761017215391,19.08814948,3947.5,3947.4,0.002]
[1761017215959,13.96021448,3947.5,3947.4,0.002]
[1761017216367,17.13237248,3947.5,3947.4,0.002]
[1761017217505,18.39103448,3947.5,3947.4,0.002]
[1761017218073,16.76631748,3947.5,3947.4,0.002]
[1761017218399,20.81845148,3947.5,3947.4,0.002]
[1761017219194,19.43762148,3947.5,3947.4,0.002]
[1761017219428,19.53662148,3947.5,3947.4,0.002]
[1761017219901,18.52607148,3947.5,3947.4,0.002]
[1761017220491,17.88032848,3947.5,3947.4,0.002]
[1761017221598,19.12172048,3947.5,3947.4,0.002]
[1761017221990,19.93732335,3947.5,3947.4,0.002]
[1761017222299,11.97755161,3947.1,3947.0,0.002]
[1761017222478,16.67816177,3947.1,3947.0,0.002]
[1761017222687,14.95016177,3947.1,3947.0,0.002]
[1761017223072,13.27959355,3947.1,3947.0,0.002]
[1761017223274,13.27959355,3947.1,3947.0,0.4386]
[1761017224766,15.00759355,3947.1,3947.0,0.002]
[1761017226321,25.98153855,3947.1,3947.0,0.002]
[1761017226518,25.45049501,3947.1,3947.0,0.002]
[1761017226821,25.54949501,3947.1,3947.0,0.002]
[1761017227123,2.53376238,3946.7,3946.6,0.002]
[1761017227290,19.60094638,3946.7,3946.6,0.002]
[1761017227483,15.19322538,3946.7,3946.6,0.002]
[1761017227883,15.6739937,3946.7,3946.6,0.002]
[1761017228314,17.7942327,3946.7,3946.6,0.002]
[1761017228620,19.34774964,3946.7,3946.6,0.002]
[1761017229034,19.24874964,3946.7,3946.6,0.002]
[1761017229315,17.20095264,3946.7,3946.6,0.002]
[1761017229620,16.31228964,3946.7,3946.6,0.002]
[1761017230417,14.69097732,3946.7,3946.6,0.4386]
[1761017230624,14.69097732,3946.7,3946.6,0.002]
[1761017231524,17.70498532,3946.7,3946.6,0.002]
[1761017232022,17.20991632,3946.7,3946.6,0.002]
[1761017232526,18.77741432,3946.7,3946.6,0.002]
[1761017232890,18.26783832,3946.7,3946.6,0.002]
[1761017233304,18.31200713,3946.7,3946.6,0.002]
[1761017233524,18.48565613,3946.7,3946.6,0.002]
[1761017234436,19.99953713,3946.7,3946.6,0.002]
[1761017234604,18.78453713,3946.7,3946.6,0.002]
[1761017235218,18.88353713,3946.7,3946.6,0.002]
[1761017235430,23.17329813,3946.7,3946.6,0.002]
[1761017235847,22.02613513,3946.7,3946.6,0.002]
[1761017236198,20.07083113,3946.7,3946.6,0.002]
[1761017236499,19.29212713,3946.7,3946.6,0.002]
[1761017236910,18.83612713,3946.7,3946.6,0.002]
[1761017237126,18.26812713,3946.7,3946.6,0.002]
[1761017237506,18.29490013,3946.7,3946.6,0.002]
[1761017238502,17.83010013,3946.7,3946.6,0.002]
[1761017239530,19.39912113,3946.7,3946.6,0.002]
[1761017239734,18.86812113,3946.7,3946.6,0.002]
[1761017240237,18.96712113,3946.7,3946.6,0.002]
[1761017240528,19.64602713,3946.7,3946.6,0.002]
[1761017240710,19.95475,3946.7,3946.6,0.002]
[1761017241628,23.504467,3946.7,3946.6,0.002]
[1761017242041,23.195767,3946.7,3946.6,0.002]
[1761017242416,21.192891,3946.7,3946.6,0.002]
[1761017242625,22.278054,3946.7,3946.6,0.002]
[1761017243122,22.049569,3946.7,3946.6,0.002]
[1761017243629,22.079182,3946.7,3946.6,0.002]
[1761017244701,22.046422,3946.7,3946.6,0.002]
[1761017245351,22.38066059,3946.7,3946.6,0.002]
[1761017245713,22.38066059,3946.7,3946.5,0.002]
[1761017245714,24.41080745,3946.6,3946.5,0.002]
[1761017245922,26.00441761,3946.6,3946.5,0.002]
[1761017246356,21.9115272,3946.3,3946.2,0.002]
[1761017246641,25.1175272,3946.3,3946.2,0.002]
[1761017246851,25.48514814,3946.3,3946.2,0.002]
[1761017247015,25.75002091,3946.3,3946.2,0.002]
[1761017247748,25.94050691,3946.3,3946.2,0.002]
[1761017247915,26.24922978,3946.3,3946.2,0.002]
[1761017248113,26.34822978,3946.3,3946.2,0.002]
[1761017248337,24.77665778,3946.3,3946.2,0.002]
[1761017248540,22.11684578,3946.3,3946.2,0.002]
[1761017248726,22.22744478,3946.3,3946.2,0.002]
[1761017248927,22.18327201,3946.3,3946.2,0.002]
[1761017249847,22.55642401,3946.3,3946.2,0.002]
[1761017250015,22.08157701,3946.3,3946.2,0.002]
[1761017251051,21.90809901,3946.3,3946.2,0.002]
[1761017251226,21.59939701,3946.3,3946.2,0.002]
[1761017251849,20.08326801,3946.3,3946.2,0.002]
[1761017252036,20.55811501,3946.3,3946.2,0.002]
[1761017253149,21.95578001,3946.3,3946.2,0.002]
[1761017253322,21.70210192,3946.3,3946.2,0.002]
[1761017253645,21.65792801,3946.3,3946.2,0.002]
[1761017253836,21.75692801,3946.3,3946.2,0.002]
[1761017254038,27.47200201,3946.3,3946.2,0.002]
[1761017254218,26.47200201,3946.3,3946.2,0.002]
[1761017254418,24.65985501,3946.3,3946.2,0.002]
[1761017255020,24.90433101,3946.3,3946.2,0.002]
[1761017255420,21.71700401,3946.3,3946.2,0.002]
[1761017255622,22.22388401,3946.3,3946.2,0.002]
[1761017255817,22.34690501,3946.2,3946.1,0.002]
[1761017256057,25.84783482,3946.2,3946.1,0.002]
[1761017256551,26.3573562,3946.2,3946.1,0.002]
[1761017256860,21.91121308,3945.9,3945.8,0.002]
[1761017257019,26.35579608,3945.9,3945.8,0.002]
[1761017257218,26.10311008,3945.9,3945.8,0.002]
[1761017257447,27.59772024,3945.9,3945.8,0.002]
[1761017257618,27.64189881,3945.9,3945.8,0.002]
[1761017258020,27.99623635,3945.9,3945.8,0.002]
[1761017258860,28.50311635,3945.9,3945.8,0.002]
[1761017259456,28.81183922,3945.9,3945.8,0.002]
[1761017259761,19.14992777,3945.8,3945.7,0.002]
[1761017259957,15.60386625,3945.4,3945.3,0.002]
[1761017260120,27.30113425,3945.4,3945.3,0.002]
[1761017260326,26.50422625,3945.4,3945.3,0.002]
[1761017261047,21.41530325,3945.4,3945.3,0.002]
[1761017261370,24.11866165,3945.4,3945.3,0.002]